bitfinex/quotes_BTCUSD_20250526
["timestamp","ask_amount","ask_price","bid_price","bid_amount"]
[1748246252455,0.02866467,109970.0,109960.0,6.31709017]
[1748246252635,0.02866467,109970.0,109960.0,6.32618388]
[1748246253062,0.32712,109980.0,109970.0,1.02486788]
[1748246253269,0.32712,109980.0,109970.0,5.74877688]
[1748246253486,0.1775417,109990.0,109980.0,0.580728]
[1748246253697,0.1775417,109990.0,109980.0,5.56009794]
[1748246253908,0.16665115,109990.0,109980.0,5.56918992]
[1748246254128,0.16665115,109990.0,109980.0,5.59645792]
[1748246254359,0.002,109990.0,109980.0,5.63755792]
[1748246254772,0.0024978,109990.0,109980.0,5.63755792]
[1748246254981,0.01158895,109990.0,109980.0,5.63755792]
[1748246255221,0.02068027,109990.0,109980.0,5.60645792]
[1748246255432,0.01158895,109990.0,109980.0,5.60645792]
[1748246255987,0.01558887,109990.0,109980.0,5.60645792]
[1748246256860,0.0246801,109990.0,109980.0,5.60645792]
[1748246257068,0.02468002,109990.0,109980.0,5.60645792]
[1748246257622,0.02468002,109990.0,109980.0,5.57485792]
[1748246257822,0.02468002,109990.0,109980.0,6.26275792]
[1748246258328,0.03377134,109990.0,109980.0,6.26275792]
[1748246259649,0.21560605,109990.0,109980.0,6.21638918]
[1748246259845,0.2696154,109990.0,109980.0,6.15258994]
[1748246261507,0.2696154,109990.0,109980.0,6.00726994]
[1748246261699,0.2696154,109990.0,109980.0,6.15258994]
[1748246263126,0.30023468,109990.0,109980.0,6.15258994]
[1748246263664,0.30023468,109990.0,109980.0,5.46468994]
[1748246265602,0.30872238,109990.0,109980.0,5.46468994]
[1748246268596,0.30872238,109990.0,109980.0,5.31936994]
[1748246268802,0.69914794,109990.0,109980.0,4.97936994]
[1748246269576,0.73915698,109990.0,109980.0,4.97936994]
[1748246269797,0.73915698,109990.0,109980.0,3.39808094]
[1748246270053,0.75366172,109990.0,109980.0,3.39808094]
[1748246270243,0.75366172,109990.0,109980.0,3.37679393]
[1748246271112,0.84318323,109990.0,109980.0,3.37679393]
[1748246271315,0.74517402,109990.0,109980.0,3.37679393]
[1748246271933,0.78690497,109990.0,109980.0,3.37679393]
[1748246272341,0.78690497,109990.0,109980.0,3.34941867]
[1748246272546,0.78690497,109990.0,109980.0,2.99726]
[1748246272743,0.26405397,109970.0,109960.0,4.578549]
[1748246272953,0.40937397,109970.0,109960.0,4.578549]
[1748246274614,0.40937397,109970.0,109960.0,4.580549]
[1748246274820,0.40937397,109970.0,109960.0,4.582549]
[1748246277411,0.43999325,109970.0,109960.0,4.582549]
[1748246278531,0.43999325,109970.0,109960.0,4.93470767]
[1748246279592,0.52953881,109970.0,109960.0,4.93470767]
[1748246282469,0.52953881,109970.0,109960.0,4.93270767]
[1748246282794,0.52953881,109970.0,109960.0,4.93070767]
[1748246283501,0.54909508,109970.0,109960.0,4.93070767]
[1748246284234,0.55109508,109970.0,109960.0,4.93070767]
[1748246284585,0.53153881,109970.0,109960.0,4.93070767]
[1748246284794,0.53353881,109970.0,109960.0,4.93070767]
[1748246285840,0.54440649,109970.0,109960.0,4.93070767]
[1748246286323,0.54440649,109970.0,109960.0,5.27070767]
[1748246286888,0.58613744,109970.0,109960.0,5.27070767]
[1748246287578,0.58613744,109970.0,109960.0,5.24333083]
[1748246288171,0.57526976,109970.0,109960.0,5.24333083]
[1748246289655,0.58395835,109970.0,109960.0,5.24333083]
[1748246289993,0.93174891,109970.0,109960.0,5.24333083]
[1748246290420,0.8422274,109970.0,109960.0,5.24333083]
[1748246290975,0.85309508,109970.0,109960.0,5.24333083]
[1748246291207,0.85309508,109970.0,109960.0,5.22203758]
[1748246293083,0.70853508,109970.0,109960.0,5.22203758]
[1748246295652,0.70853508,109970.0,109960.0,4.96624496]
[1748246296566,0.40777508,109970.0,109960.0,4.96624496]
[1748246296768,0.40962952,109970.0,109960.0,4.96624496]
[1748246296977,0.39876184,109970.0,109960.0,5.02924496]
[1748246299201,0.39876184,109970.0,109960.0,4.99724496]
[1748246299415,0.40962952,109970.0,109960.0,4.99724496]
[1748246299620,0.55498952,109970.0,109960.0,4.99724496]
[1748246299798,0.55498952,109970.0,109960.0,5.02974496]
[1748246299965,0.55498952,109970.0,109960.0,5.29182867]
[1748246300167,0.54412184,109970.0,109960.0,5.29182867]
[1748246300417,0.39876184,109970.0,109960.0,5.29182867]
[1748246302226,0.39876184,109970.0,109960.0,5.25932867]
[1748246302425,0.39876184,109970.0,109960.0,5.31387867]
[1748246302634,0.39876184,109970.0,109960.0,5.25932867]
[1748246303777,0.54412184,109970.0,109960.0,5.25932867]
[1748246304099,0.54412184,109970.0,109960.0,5.22832867]
[1748246304501,0.54412184,109970.0,109960.0,5.25982867]
[1748246305810,0.55498952,109970.0,109960.0,5.25982867]
[1748246306157,0.55498952,109970.0,109960.0,5.22832867]
[1748246310118,0.58051469,109970.0,109960.0,5.22832867]
[1748246310451,0.10152347,109970.0,109960.0,5.51069463]
[1748246310665,0.09418441,109970.0,109960.0,5.65605463]
[1748246310871,0.06632092,109970.0,109960.0,5.68332563]
[1748246311072,0.02727668,109980.0,109970.0,0.84498469]
[1748246311248,0.20912792,109980.0,109970.0,5.43476188]
[1748246311786,0.20003594,109980.0,109970.0,5.41346897]
[1748246312462,0.20003594,109980.0,109970.0,5.46801897]
[1748246312664,0.20003594,109980.0,109970.0,5.41346897]
[1748246312898,0.20203594,109980.0,109970.0,5.41346897]
[1748246314524,0.20203594,109980.0,109970.0,5.44073797]
[1748246314665,0.20203594,109980.0,109970.0,5.44983094]
[1748246314870,0.02018421,109980.0,109970.0,5.45892383]
[1748246315079,0.02018404,109980.0,109970.0,5.46801664]
[1748246315489,0.02927635,109980.0,109970.0,5.46801664]
[1748246315700,0.02018404,109980.0,109970.0,5.46801664]
[1748246316440,0.02018396,109980.0,109970.0,5.46801664]
[1748246316599,0.02018396,109980.0,109970.0,6.15591664]
[1748246316803,0.02018388,109980.0,109970.0,6.15591664]
[1748246317006,0.02927594,109980.0,109970.0,6.15591664]
[1748246318324,0.002,109980.0,109970.0,6.2454622]
[1748246318541,0.01109181,109980.0,109970.0,6.2454622]
[1748246318747,0.02018379,109980.0,109970.0,6.2454622]
[1748246319194,0.02927602,109980.0,109970.0,6.2454622]
[1748246319436,0.02927585,109980.0,109970.0,6.2454622]
[1748246319864,0.02018379,109980.0,109970.0,6.2454622]
[1748246320077,0.01109181,109980.0,109970.0,6.3908222]
[1748246320287,0.02018387,109980.0,109970.0,6.3908222]
[1748246320908,0.01109181,109980.0,109970.0,6.3908222]
[1748246321193,0.02018387,109980.0,109970.0,6.3908222]
[1748246322619,0.34858447,109990.0,109980.0,0.7853046]
[1748246322864,0.34858447,109990.0,109980.0,5.3214746]
[1748246323577,0.35706148,109990.0,109980.0,5.3214746]
[1748246324037,0.35706148,109990.0,109980.0,5.4667946]
[1748246324194,0.35906148,109990.0,109980.0,5.47588691]
[1748246324991,0.36006148,109990.0,109980.0,5.47588691]
[1748246325400,0.36006148,109990.0,109980.0,5.48497914]
[1748246325601,0.19640917,109990.0,109980.0,5.5262712]
[1748246325826,0.38733561,109990.0,109980.0,5.51717914]
[1748246326029,0.37824438,109990.0,109980.0,5.48497914]
[1748246327865,0.3691529,109990.0,109980.0,5.48497914]
[1748246328249,0.3998155,109990.0,109980.0,5.48497914]
[1748246328591,0.3998155,109990.0,109980.0,6.16177914]
[1748246329199,0.21798079,109990.0,109980.0,6.17087128]
[1748246330865,0.21798079,109990.0,109980.0,6.17996334]
[1748246331097,0.06281963,109990.0,109980.0,6.33340849]
[1748246331304,0.06281963,109990.0,109980.0,6.36067249]
[1748246331512,0.0537284,109990.0,109980.0,6.36067249]
[1748246331849,0.06181963,109990.0,109980.0,6.36067249]
[1748246332051,0.05981963,109990.0,109980.0,6.36067249]
[1748246332371,0.06891095,109990.0,109980.0,6.34438571]
[1748246332933,0.28264624,109990.0,109980.0,6.17275644]
[1748246333135,0.31264624,109990.0,109980.0,6.17275644]
[1748246333349,0.31264624,109990.0,109980.0,5.4757643]
[1748246333557,0.13990326,109990.0,109980.0,5.48485644]
[1748246333731,0.14090326,109990.0,109980.0,5.4989485]
[1748246334439,0.08024066,109990.0,109980.0,5.4989485]
[1748246335558,0.08024066,109990.0,109980.0,5.4807643]
[1748246335759,0.25298414,109990.0,109980.0,5.47167199]
[1748246335899,0.27409282,109990.0,109980.0,5.30110753]
[1748246336099,0.26500125,109990.0,109980.0,5.29201497]
[1748246336545,0.26500125,109990.0,109980.0,5.14669497]
[1748246336722,0.26500125,109990.0,109980.0,4.77943097]
[1748246337044,0.26500125,109990.0,109980.0,5.11943097]
[1748246337248,0.35454681,109990.0,109980.0,4.54617]
[1748246337571,0.35454681,109990.0,109980.0,4.88617]
[1748246337721,0.35454681,109990.0,109980.0,4.54617]
[1748246338086,0.35454681,109990.0,109980.0,4.88617]
[1748246338427,0.35454681,109990.0,109980.0,4.54617]
[1748246338626,0.66570733,109990.0,109980.0,4.54617]
[1748246339044,0.66570733,109990.0,109980.0,4.88617]
[1748246339622,0.57516177,109990.0,109980.0,4.88117]
[1748246340018,0.27588177,109990.0,109980.0,4.88517]
[1748246340375,0.6068163,109990.0,109980.0,4.88517]
[1748246340574,0.6068163,109990.0,109980.0,4.88017]
[1748246341017,0.6068163,109990.0,109980.0,4.85579628]
[1748246341202,0.6068163,109990.0,109980.0,4.855796]
[1748246341753,0.60660849,109990.0,109980.0,4.855796]
[1748246343265,0.60660849,109990.0,109980.0,5.08905697]
[1748246345056,0.69615405,109990.0,109980.0,5.08905697]
[1748246345255,0.71294233,109990.0,109980.0,5.08905697]
[1748246345564,0.69615405,109990.0,109980.0,5.08905697]
[1748246347245,0.70115405,109990.0,109980.0,5.08905697]
[1748246347654,0.71565798,109990.0,109980.0,5.08905697]
[1748246348070,0.70718097,109990.0,109980.0,5.08905697]
[1748246348245,0.79670248,109990.0,109980.0,5.08905697]
[1748246348780,0.80539676,109990.0,109980.0,5.08605697]
[1748246349303,0.80539676,109990.0,109980.0,5.08205697]
[1748246349481,0.80639676,109990.0,109980.0,5.08205697]
[1748246349663,0.79189283,109990.0,109980.0,5.08205697]
[1748246350101,0.70237132,109990.0,109980.0,5.08205697]
[1748246350718,0.40209132,109990.0,109980.0,5.08205697]
[1748246350872,0.69745132,109990.0,109980.0,5.08205697]
[1748246351208,0.43882227,109990.0,109980.0,5.08205697]
[1748246351409,0.73918227,109990.0,109980.0,5.08205697]
[1748246351637,0.74767111,109990.0,109980.0,5.08205697]
[1748246352616,0.51276555,109990.0,109980.0,5.08205697]
[1748246353025,0.45066555,109990.0,109980.0,4.848796]
[1748246353318,0.59602555,109990.0,109980.0,4.848796]
[1748246353505,0.59502555,109990.0,109980.0,4.848796]
[1748246353706,0.57545075,109990.0,109980.0,4.848796]
[1748246353930,0.57445075,109990.0,109980.0,4.849796]
[1748246354639,0.57445075,109990.0,109980.0,4.82850569]
[1748246355070,0.42909075,109990.0,109980.0,4.82850569]
[1748246356886,0.3873598,109990.0,109980.0,4.82850569]
[1748246357227,0.2323598,109990.0,109980.0,5.06176666]
[1748246357386,0.2323598,109990.0,109980.0,5.47749014]
[1748246357387,0.04143336,109990.0,109980.0,5.47749014]
[1748246357591,0.04143336,109990.0,109980.0,5.62285014]
[1748246357800,0.04143336,109990.0,109980.0,5.65011214]
[1748246358214,0.04143336,109990.0,109980.0,5.33140245]
[1748246358522,0.03294452,109990.0,109980.0,5.33040245]
[1748246358681,0.03394452,109990.0,109980.0,5.33440245]
[1748246358883,0.03394452,109990.0,109980.0,5.33740245]
[1748246359096,0.03294452,109990.0,109980.0,5.33340245]
[1748246359893,0.03394452,109990.0,109980.0,5.33940245]
[1748246360101,0.03394452,109990.0,109980.0,5.67640245]
[1748246360535,0.03394452,109990.0,109980.0,5.68040245]
[1748246363760,0.00328999,109990.0,109980.0,5.68040245]
[1748246364457,0.01238098,109990.0,109980.0,5.68040245]
[1748246365730,0.00328999,109990.0,109980.0,5.68040245]
[1748246366805,0.23890212,110000.0,109990.0,0.76998858]
[1748246367019,0.03863812,110000.0,109990.0,5.49087129]
[1748246367191,0.03496763,110000.0,109990.0,5.51446922]
[1748246367404,0.02647879,110000.0,109990.0,5.49087129]
[1748246367607,0.02647879,110000.0,109990.0,5.51813129]
[1748246367948,0.02647879,110000.0,109990.0,5.52013129]
[1748246368165,0.02647879,110000.0,109990.0,5.52213129]
[1748246372757,0.03835858,110010.0,110000.0,0.78248209]
[1748246372982,0.03844902,110010.0,110000.0,5.40335809]
[1748246374041,0.04753902,110010.0,110000.0,5.40335809]
[1748246374261,0.04753902,110010.0,110000.0,5.40435809]
[1748246374468,0.04753902,110010.0,110000.0,5.43261809]
[1748246374704,0.03844902,110010.0,110000.0,5.43261809]
[1748246375996,0.10204902,110010.0,110000.0,5.43261809]
[1748246376291,0.07943902,110010.0,110000.0,5.43261809]
[1748246376506,0.04753902,110010.0,110000.0,5.43261809]
[1748246376712,0.04753902,110010.0,110000.0,5.46481809]
[1748246377132,0.04753902,110010.0,110000.0,5.43261809]
[1748246378060,0.05602786,110010.0,110000.0,5.43261809]
[1748246378572,0.05602786,110010.0,110000.0,6.09411809]
[1748246378789,0.22874009,110010.0,110000.0,6.09411825]
[1748246379012,0.23783017,110010.0,110000.0,6.09411825]
[1748246379451,0.04693844,110010.0,110000.0,6.09411825]
[1748246379703,0.04693844,110010.0,110000.0,6.10320858]
[1748246379947,0.03784844,110010.0,110000.0,6.10320858]
[1748246380711,0.09944844,110010.0,110000.0,6.10320858]
[1748246381428,0.03784844,110010.0,110000.0,6.10320858]
[1748246381638,0.06854844,110010.0,110000.0,6.10320858]
[1748246382068,0.06854844,110010.0,110000.0,6.08192667]
[1748246383159,0.06894844,110010.0,110000.0,6.10010806]
[1748246383369,0.10204844,110010.0,110000.0,6.10010806]
[1748246383972,0.11113852,110010.0,110000.0,6.10010806]
[1748246384165,0.11113852,110010.0,110000.0,5.95482806]
[1748246384513,0.11113852,110010.0,110000.0,6.10010806]
[1748246384713,0.10204844,110010.0,110000.0,6.10010806]
[1748246386735,0.10204844,110010.0,110000.0,5.95482806]
[1748246386943,0.10204844,110010.0,110000.0,6.10010806]
[1748246387348,0.11113844,110010.0,110000.0,6.10010806]
[1748246387629,0.12022852,110010.0,110000.0,6.10010806]
[1748246387862,0.29294067,110010.0,110000.0,6.10010814]
[1748246389351,0.11113902,110010.0,110000.0,5.95482814]
[1748246389488,0.10204894,110010.0,110000.0,6.10919847]
[1748246390509,0.10204894,110010.0,110000.0,5.96391847]
[1748246390722,0.10204894,110010.0,110000.0,6.10919847]
[1748246394329,0.09295894,110010.0,110000.0,6.10919847]
[1748246394484,0.10204844,110010.0,110000.0,6.10919847]
[1748246394693,0.11113852,110010.0,110000.0,6.10010814]
[1748246394915,0.10204844,110010.0,110000.0,6.10919847]
[1748246395430,0.1289228,110010.0,110000.0,6.10919847]
[1748246395951,0.15957208,110010.0,110000.0,6.10919847]
[1748246396395,0.33228423,110010.0,110000.0,6.10010814]
[1748246397180,0.33228423,110010.0,110000.0,5.95482814]
[1748246397383,0.29918423,110010.0,110000.0,6.10010814]
[1748246397689,0.11738258,110010.0,110000.0,6.10919847]
[1748246398121,0.14818258,110010.0,110000.0,6.10919847]
[1748246400334,0.1394883,110010.0,110000.0,6.10919847]
[1748246400550,0.10019946,110010.0,110000.0,6.10919847]
[1748246400969,0.28200111,110010.0,110000.0,6.08192741]
[1748246401142,0.31382204,110010.0,110000.0,6.07283667]
[1748246402509,0.32253704,110010.0,110000.0,6.07283667]
[1748246403240,0.28104713,110010.0,110000.0,6.07283667]
[1748246403460,0.28104713,110010.0,110000.0,6.0515547]
[1748246403461,0.25039785,110010.0,110000.0,6.0515547]
[1748246403908,0.28179785,110010.0,110000.0,6.0515547]
[1748246404115,0.27270785,110010.0,110000.0,6.0515547]
[1748246404327,0.21020785,110010.0,110000.0,6.0515547]
[1748246405063,0.20149285,110010.0,110000.0,6.0515547]
[1748246405488,0.23469285,110010.0,110000.0,6.0515547]
[1748246405692,0.26609285,110010.0,110000.0,4.538056]
[1748246405862,0.29162802,110010.0,110000.0,4.538056]
[1748246406063,0.26609285,110010.0,110000.0,4.850796]
[1748246406268,0.12072039,110010.0,110000.0,5.05079574]
[1748246406475,0.29516584,110010.0,110000.0,5.04170508]
[1748246406676,0.27698643,110010.0,110000.0,5.0051669]
[1748246406883,0.27698643,110010.0,110000.0,5.186985]
[1748246407296,0.27698643,110010.0,110000.0,4.996076]
[1748246407297,0.26609268,110010.0,110000.0,4.996076]
[1748246407686,0.26210329,110010.0,110000.0,5.0051669]
[1748246408055,0.26210329,110010.0,110000.0,5.18698508]
[1748246408706,0.26210329,110010.0,110000.0,5.20516647]
[1748246408917,0.26210329,110010.0,110000.0,5.20516656]
[1748246409322,0.00661173,110010.0,110000.0,5.21425697]
[1748246409521,0.02479114,110010.0,110000.0,5.21425697]
[1748246409726,0.02479081,110010.0,110000.0,5.2233473]
[1748246409930,0.02479081,110010.0,110000.0,5.21425697]
[1748246410130,0.03388056,110010.0,110000.0,5.2233473]
[1748246410705,0.04297047,110010.0,110000.0,5.2233473]
[1748246410919,0.03388056,110010.0,110000.0,5.21425697]
[1748246411218,0.04297056,110010.0,110000.0,6.07594916]
[1748246411522,0.03388056,110010.0,110000.0,6.08503949]
[1748246412429,0.02362086,110010.0,110000.0,6.17458505]
[1748246412708,0.03908858,110010.0,110000.0,6.17458505]
[1748246413167,0.04817824,110010.0,110000.0,6.22913505]
[1748246413394,0.04817816,110010.0,110000.0,6.22913505]
[1748246413642,0.07893447,110010.0,110000.0,6.22913505]
[1748246413845,0.06984489,110010.0,110000.0,6.22913505]
[1748246414983,0.07893455,110010.0,110000.0,6.22913505]
[1748246415661,0.11083455,110010.0,110000.0,6.22913505]
[1748246415877,0.07893455,110010.0,110000.0,6.22913505]
[1748246416304,0.07893455,110010.0,110000.0,6.25639505]
[1748246416529,0.06984489,110010.0,110000.0,6.25639505]
[1748246416744,0.11084786,110010.0,110000.0,6.25639505]
[1748246417171,0.11993744,110010.0,110000.0,6.25639505]
[1748246417603,0.12902719,110010.0,110000.0,6.25639505]
[1748246417833,0.11993744,110010.0,110000.0,6.25639505]
[1748246418047,0.12902719,110010.0,110000.0,6.25639505]
[1748246418471,0.16172719,110010.0,110000.0,6.25639505]
[1748246418685,0.1927271,110010.0,110000.0,6.25639505]
[1748246418908,0.18363744,110010.0,110000.0,6.25639505]
[1748246419144,0.19272702,110010.0,110000.0,6.25639505]
[1748246419358,0.16172702,110010.0,110000.0,6.25639505]
[1748246420018,0.11993736,110010.0,110000.0,6.25639505]
[1748246420232,0.12902702,110010.0,110000.0,6.25639505]
[1748246420467,0.16172702,110010.0,110000.0,6.25639505]
[1748246420682,0.19272702,110010.0,110000.0,6.25639505]
[1748246420884,0.11993736,110010.0,110000.0,6.25639505]
[1748246421613,0.11084786,110010.0,110000.0,6.25639505]
[1748246421829,0.31043441,110020.0,110010.0,0.60292589]
[1748246422081,0.31043441,110020.0,110010.0,5.04877756]
[1748246422501,0.31043441,110020.0,110010.0,5.07603756]
[1748246423349,0.31143441,110020.0,110010.0,5.07603764]
[1748246423579,0.31243441,110020.0,110010.0,5.22131764]
[1748246423788,0.13064832,110020.0,110010.0,5.2304073]
[1748246424823,0.08887776,110020.0,110010.0,5.2304073]
[1748246425207,0.09696701,110020.0,110010.0,5.2304073]
[1748246425615,0.08787776,110020.0,110010.0,5.2314073]
[1748246425817,0.10505618,110020.0,110010.0,6.18799688]
[1748246426121,0.07778851,110020.0,110010.0,5.59064244]
[1748246426319,0.005,110020.0,110010.0,6.40468194]
[1748246427056,0.005,110020.0,110010.0,6.40368194]
[1748246427303,0.006,110020.0,110010.0,6.40968194]
[1748246428101,0.006,110020.0,110010.0,6.40868194]
[1748246428448,0.006,110020.0,110010.0,6.41368194]
[1748246430408,0.03812468,110020.0,110010.0,6.41368194]
[1748246431609,0.04537652,110030.0,110010.0,6.41368194]
[1748246431610,0.01817594,110030.0,110010.0,6.41368194]
[1748246431844,0.41904779,110040.0,110030.0,0.52518723]
[1748246432052,0.41904779,110040.0,110030.0,5.18835157]
[1748246432197,0.41904779,110040.0,110030.0,5.21560557]
[1748246432399,0.41904779,110040.0,110030.0,5.39737417]
[1748246432704,0.41904779,110040.0,110030.0,5.38828583]
[1748246432972,0.41904779,110040.0,110030.0,5.39737417]
[1748246433217,0.41904779,110040.0,110030.0,5.39937417]
[1748246433699,0.24365938,110040.0,110030.0,5.40137417]
[1748246434095,0.26063209,110040.0,110030.0,5.40137417]
[1748246434437,0.26911745,110040.0,110030.0,5.40137417]
[1748246434891,0.26903202,110040.0,110030.0,5.39228583]
[1748246435133,0.26903202,110040.0,110030.0,5.40137417]
[1748246435627,0.10522434,110040.0,110030.0,5.41955012]
[1748246435833,0.11431153,110040.0,110030.0,5.33605012]
[1748246435977,0.0961374,110040.0,110030.0,5.3360502]
[1748246436185,0.04090985,110040.0,110030.0,5.34513805]
[1748246436415,0.04999695,110040.0,110030.0,5.34513805]
[1748246436614,0.03182283,110040.0,110030.0,6.10130566]
[1748246437052,0.03182283,110040.0,110030.0,6.18695566]
[1748246437600,0.03182283,110040.0,110030.0,6.21885566]
[1748246438069,0.02545807,110040.0,110030.0,6.21885566]
[1748246438227,0.00848536,110040.0,110030.0,5.53095566]
[1748246438429,0.00848536,110040.0,110030.0,5.21223361]
[1748246439070,0.00848536,110040.0,110030.0,5.21023361]
[1748246439482,0.03917929,110040.0,110030.0,5.21219361]
[1748246439675,0.03917929,110040.0,110030.0,5.21519361]
[1748246439877,0.03917929,110040.0,110030.0,5.21119361]
[1748246440287,0.03917929,110040.0,110030.0,5.55519361]
[1748246440559,0.03917929,110040.0,110030.0,5.40995361]
[1748246440765,0.03917929,110040.0,110030.0,5.55519361]
[1748246441130,0.03926973,110040.0,110030.0,5.55519361]
[1748246441721,0.03926973,110040.0,110030.0,5.40995361]
[1748246441928,0.03926973,110040.0,110030.0,5.55519361]
[1748246442131,0.35020232,110060.0,110050.0,0.60032397]
[1748246442308,0.10489298,110060.0,110050.0,5.99050553]
[1748246442498,0.03240753,110060.0,110050.0,5.99050553]
[1748246442848,0.00908521,110060.0,110050.0,5.99050553]
[1748246443300,0.30324255,110070.0,110060.0,0.53989063]
[1748246443506,0.3124181,110070.0,110060.0,5.04868663]
[1748246443710,0.27064754,110070.0,110060.0,5.04868671]
[1748246444119,0.45235009,110070.0,110060.0,5.06684693]
[1748246444763,0.28858538,110070.0,110060.0,4.88607107]
[1748246444970,0.74177406,110070.0,110060.0,4.848796]
[1748246445155,0.89645406,110070.0,110060.0,4.848796]
[1748246445393,0.53281094,110070.0,110060.0,4.848796]
[1748246445635,0.53381094,110070.0,110060.0,4.848796]
[1748246446542,0.44426538,110070.0,110060.0,4.848796]
[1748246447149,0.28958538,110070.0,110060.0,4.848796]
[1748246447313,0.44426538,110070.0,110060.0,4.848796]
[1748246448035,0.28958538,110070.0,110060.0,4.848796]
[1748246448237,0.44426538,110070.0,110060.0,4.848796]
[1748246448822,0.44526538,110070.0,110060.0,4.848796]
[1748246449019,0.29058538,110070.0,110060.0,4.848796]
[1748246449194,0.29058538,110070.0,110060.0,4.85882507]
[1748246451432,0.29058538,110070.0,110060.0,4.88607107]
[1748246454928,0.29905755,110070.0,110060.0,4.88607107]
[1748246457642,0.29905755,110070.0,110060.0,4.86479903]
[1748246460030,0.29905755,110070.0,110060.0,4.98279303]
[1748246460972,0.66270067,110070.0,110060.0,4.98279303]
[1748246462598,0.29905755,110070.0,110060.0,4.98279303]
[1748246462817,0.66270067,110070.0,110060.0,4.98279303]
[1748246463032,0.66270067,110070.0,110060.0,4.83755303]
[1748246464930,0.29905755,110070.0,110060.0,4.83755303]
[1748246465360,0.32965847,110070.0,110060.0,4.83755303]
[1748246466378,0.32329371,110070.0,110060.0,4.83755303]
[1748246466581,0.29786398,110070.0,110060.0,4.83755303]
[1748246467016,0.23456398,110070.0,110060.0,5.01927209]
[1748246467215,0.24942678,110070.0,110060.0,5.03744374]
[1748246467385,0.26641284,110070.0,110060.0,5.03744374]
[1748246468019,0.25732788,110070.0,110060.0,5.02835796]
[1748246468566,0.31545884,110070.0,110060.0,4.83755303]
[1748246468785,0.31545884,110070.0,110060.0,4.84663898]
[1748246468999,0.28415884,110070.0,110060.0,4.84663898]
[1748246469248,0.25415884,110070.0,110060.0,4.85572485]
[1748246469762,0.25415884,110070.0,110060.0,5.03744391]
[1748246470516,0.25415884,110070.0,110060.0,5.04652969]
[1748246470739,0.25415884,110070.0,110060.0,5.05561539]
[1748246470962,0.06454021,110070.0,110060.0,5.05561539]
[1748246471181,0.1008798,110070.0,110060.0,5.0647006]
[1748246471401,0.1008798,110070.0,110060.0,5.0647001]
[1748246471635,0.09179468,110070.0,110060.0,5.0647001]
[1748246471846,0.10996484,110070.0,110060.0,5.05561473]
[1748246472053,0.10088021,110070.0,110060.0,5.05561473]
[1748246472605,0.28258276,110070.0,110060.0,5.05561473]
[1748246473025,0.27349788,110070.0,110060.0,5.05561473]
[1748246473282,0.27349788,110070.0,110060.0,5.06470018]
[1748246474275,0.27349788,110070.0,110060.0,5.05561473]
[1748246474484,0.06454021,110070.0,110060.0,5.96219566]
[1748246475213,0.06454021,110070.0,110060.0,5.97673651]
[1748246475639,0.06254021,110070.0,110060.0,6.12193651]
[1748246475893,0.03918438,110070.0,110060.0,6.12193651]
[1748246476095,0.03918438,110070.0,110060.0,5.98260158]
[1748246476265,0.03918438,110070.0,110060.0,6.12780158]
[1748246476835,0.03918438,110070.0,110060.0,6.13180158]
[1748246477272,0.00858346,110070.0,110060.0,6.13080158]
[1748246477573,0.00858346,110070.0,110060.0,6.12301501]
[1748246478593,0.00858346,110070.0,110060.0,5.94511501]
[1748246478917,0.01766784,110070.0,110060.0,6.05751501]
[1748246479291,0.03583735,110070.0,110060.0,6.04842964]
[1748246479500,0.03583735,110070.0,110060.0,6.05751501]
[1748246479694,0.04492231,110070.0,110060.0,5.22441501]
[1748246479943,0.28074089,110070.0,110060.0,5.18807278]
[1748246480082,0.28074089,110070.0,110060.0,5.3423584]
[1748246480488,0.28074089,110070.0,110060.0,5.35144394]
[1748246480685,0.00858346,110070.0,110060.0,5.42132931]
[1748246480888,0.02675246,110070.0,110060.0,5.36052931]
[1748246481527,0.01766792,110070.0,110060.0,5.36052931]
[1748246481939,0.00858346,110070.0,110060.0,5.36052931]
[1748246482182,0.00858346,110070.0,110060.0,5.42402931]
[1748246483008,0.03582069,110080.0,110070.0,0.60350692]
[1748246483202,0.05398813,110080.0,110070.0,5.23494848]
[1748246483643,0.05398813,110080.0,110070.0,5.26218848]
[1748246484075,0.0476262,110080.0,110070.0,5.26318848]
[1748246484476,0.0426262,110080.0,110070.0,5.23008848]
[1748246484622,0.03259713,110080.0,110070.0,5.91798848]
[1748246484836,0.03259713,110080.0,110070.0,5.91998848]
[1748246485217,0.08356506,110080.0,110070.0,5.91998848]
[1748246485501,0.07448101,110080.0,110070.0,5.91998848]
[1748246485642,0.08356556,110080.0,110070.0,5.91998848]
[1748246486405,0.08348014,110080.0,110070.0,5.91998848]
[1748246486616,0.11378014,110080.0,110070.0,5.91998848]
[1748246487698,0.28638304,110080.0,110070.0,5.621486]
[1748246487852,0.27729916,110080.0,110070.0,5.566936]
[1748246488069,0.28520125,110080.0,110070.0,5.539696]
[1748246488393,0.29156318,110080.0,110070.0,5.539696]
[1748246490713,0.29156318,110080.0,110070.0,4.851796]
[1748246490924,0.6552063,110080.0,110070.0,4.511796]
[1748246491167,0.29156318,110080.0,110070.0,4.851796]
[1748246491373,0.25696318,110080.0,110070.0,4.851796]
[1748246491609,0.28762704,110080.0,110070.0,4.851796]
[1748246495403,0.28762704,110080.0,110070.0,4.83052454]
[1748246495739,0.29611082,110080.0,110070.0,4.830525]
[1748246496296,0.59595082,110080.0,110070.0,4.830525]
[1748246496640,0.59595082,110080.0,110070.0,4.955325]
[1748246499151,0.95959394,110080.0,110070.0,4.955325]
[1748246499386,0.59595082,110080.0,110070.0,4.955325]
[1748246500185,1.0491395,110080.0,110070.0,4.955325]
[1748246502697,1.0491395,110080.0,110070.0,5.955325]
[1748246506293,1.0491395,110080.0,110070.0,5.954325]
[1748246506499,1.0491395,110080.0,110070.0,5.952325]
[1748246507093,1.66868035,110080.0,110070.0,1.709718]
[1748246507292,1.78365167,110080.0,110070.0,1.670774]
[1748246507492,1.78365167,110080.0,110070.0,2.010774]
[1748246507711,1.78365167,110080.0,110070.0,1.670774]
[1748246507907,1.82542223,110080.0,110070.0,1.670774]
[1748246508129,1.82542223,110080.0,110070.0,2.00487469]
[1748246508778,0.4724176,110080.0,110070.0,1.97752303]
[1748246508904,1.09099006,110080.0,110070.0,1.97752303]
[1748246509107,1.09299006,110080.0,110070.0,1.97752303]
[1748246509307,1.09399006,110080.0,110070.0,1.97752303]
[1748246510381,1.14457144,110080.0,110070.0,1.97752303]
[1748246511157,0.84465144,110080.0,110070.0,1.97752303]
[1748246511349,1.14457144,110080.0,110070.0,1.97752303]
[1748246511549,1.02155564,110080.0,110070.0,1.97752303]
[1748246511927,0.72163564,110080.0,110070.0,1.97752303]
[1748246512111,1.02155564,110080.0,110070.0,1.97752303]
[1748246512950,1.09389577,110080.0,110070.0,1.97752303]
[1748246513359,0.79397577,110080.0,110070.0,1.97752303]
[1748246513565,1.09389577,110080.0,110070.0,1.97752303]
[1748246514089,0.94865577,110080.0,110070.0,1.97752303]
[1748246514302,1.09389577,110080.0,110070.0,1.97752303]
[1748246515779,1.09389577,110080.0,110070.0,1.95624836]
[1748246517233,1.09389577,110080.0,110070.0,2.08104836]